[Event "Titled Tuesday Blitz November 2 2021"]
[White "Toropov, Pavel"]
[Black "Tsydypov, Zhamsaran"]
[WhiteFideId "24129178"]
[BlackFideId "4108566"]
[WhiteElo "2368"]
[BlackElo "2649"]
[Result "0-1"]
[Round "04"]
[TimeControl "180+1"]
[Date "2021.11.02"]
[WhiteClock "0:00:48"]
[BlackClock "0:01:06"]

1. e4 {[%clk 0:03:00]}  c5 {[%clk 0:02:59]} 2. Nf3 {[%clk 0:02:59]}  d6 {[%clk 0:03:00]} 3. Bb5+ {[%clk 0:02:58]}  Nd7 {[%clk 0:02:59]} 4. d4 {[%clk 0:02:58]}  cxd4 {[%clk 0:02:59]} 5. Qxd4 {[%clk 0:02:59]}  e5 {[%clk 0:02:59]} 6. Qd3 {[%clk 0:02:59]}  Nf6 {[%clk 0:02:59]} 7. Nc3 {[%clk 0:02:58]}  h6 {[%clk 0:02:59]} 8. Nd2 {[%clk 0:02:56]}  a6 {[%clk 0:02:56]} 9. Bxd7+ {[%clk 0:02:57]}  Qxd7 {[%clk 0:02:56]} 10. Nc4 {[%clk 0:02:57]}  Qc6 {[%clk 0:02:56]} 11. Be3 {[%clk 0:02:44]}  Be6 {[%clk 0:02:49]} 12. Nb6 {[%clk 0:02:44]}  Rd8 {[%clk 0:02:46]} 13. O-O-O {[%clk 0:02:41]}  Be7 {[%clk 0:02:37]} 14. f3 {[%clk 0:02:39]}  O-O {[%clk 0:02:34]} 15. g4 {[%clk 0:02:39]}  Nd7 {[%clk 0:02:02]} 16. Nbd5 {[%clk 0:02:33]}  Bh4 {[%clk 0:02:00]} 17. g5 {[%clk 0:02:31]}  Kh7 {[%clk 0:01:58]} 18. gxh6 {[%clk 0:01:48]}  g6 {[%clk 0:01:50]} 19. Rhg1 {[%clk 0:01:42]}  Rg8 {[%clk 0:01:38]} 20. Nb4 {[%clk 0:01:40]}  Qc8 {[%clk 0:01:34]} 21. Qxd6 {[%clk 0:01:36]}  Rge8 {[%clk 0:01:26]} 22. Nbd5 {[%clk 0:01:32]}  b5 {[%clk 0:01:21]} 23. Nc7 {[%clk 0:01:24]}  Be7 {[%clk 0:01:19]} 24. Qxa6 {[%clk 0:01:19]}  Qxc7 {[%clk 0:01:18]} 25. Nxb5 {[%clk 0:01:19]}  Qc4 {[%clk 0:01:18]} 26. b3 {[%clk 0:00:55]}  Qe2 {[%clk 0:01:16]} 27. Rge1 {[%clk 0:00:54]}  Qxf3 {[%clk 0:01:16]} 28. Nc7 {[%clk 0:00:53]}  Nb8 {[%clk 0:01:08]} 29. Qb7 {[%clk 0:00:51]}  Ba3+ {[%clk 0:01:06]} 30. Kb1 {[%clk 0:00:49]}  Rxd1+ {[%clk 0:01:06]} 31. Rxd1 {[%clk 0:00:48]}  Qxd1+ {[%clk 0:01:06]} 0-1


[Site "https://www.chess.com"]

[Event "Titled Tuesday Blitz November 2 2021"]
[White "Wagner, Dennis"]
[Black "Jobava, Baadur"]
[WhiteFideId "24650684"]
[BlackFideId "13601520"]
[WhiteElo "2355"]
[BlackElo "2731"]
[Result "0-1"]
[Round "04"]
[TimeControl "180+1"]
[Date "2021.11.02"]
[WhiteClock "0:00:03"]
[BlackClock "0:00:10"]

1. d4 {[%clk 0:03:00]}  Nf6 {[%clk 0:03:00]} 2. Nf3 {[%clk 0:03:00]}  g6 {[%clk 0:02:59]} 3. c4 {[%clk 0:03:00]}  c5 {[%clk 0:02:58]} 4. d5 {[%clk 0:02:57]}  Bg7 {[%clk 0:02:58]} 5. Nc3 {[%clk 0:02:58]}  O-O {[%clk 0:02:58]} 6. e4 {[%clk 0:02:59]}  d6 {[%clk 0:02:58]} 7. Be2 {[%clk 0:02:56]}  e6 {[%clk 0:02:56]} 8. O-O {[%clk 0:02:54]}  exd5 {[%clk 0:02:56]} 9. exd5 {[%clk 0:02:55]}  Bg4 {[%clk 0:02:55]} 10. h3 {[%clk 0:02:54]}  Bxf3 {[%clk 0:02:54]} 11. Bxf3 {[%clk 0:02:55]}  Nbd7 {[%clk 0:02:53]} 12. Re1 {[%clk 0:02:45]}  a6 {[%clk 0:02:49]} 13. Bf4 {[%clk 0:02:41]}  Qc7 {[%clk 0:02:48]} 14. Qd2 {[%clk 0:02:39]}  Rae8 {[%clk 0:02:39]} 15. b3 {[%clk 0:02:29]}  Qb8 {[%clk 0:02:32]} 16. a4 {[%clk 0:02:20]}  Qc7 {[%clk 0:02:31]} 17. Rxe8 {[%clk 0:02:02]}  Nxe8 {[%clk 0:02:27]} 18. Re1 {[%clk 0:01:59]}  Ne5 {[%clk 0:02:20]} 19. Be2 {[%clk 0:01:57]}  f5 {[%clk 0:02:11]} 20. Bf1 {[%clk 0:01:54]}  Nf7 {[%clk 0:02:08]} 21. Re6 {[%clk 0:01:38]}  Qd8 {[%clk 0:02:06]} 22. Bh2 {[%clk 0:01:21]}  Nc7 {[%clk 0:02:04]} 23. Re3 {[%clk 0:01:20]}  Qh4 {[%clk 0:01:53]} 24. Ne2 {[%clk 0:01:14]}  Bh6 {[%clk 0:01:47]} 25. f4 {[%clk 0:01:14]}  Bg7 {[%clk 0:01:45]} 26. Bg3 {[%clk 0:01:12]}  Qd8 {[%clk 0:01:44]} 27. Kh2 {[%clk 0:01:10]}  b5 {[%clk 0:01:44]} 28. Ng1 {[%clk 0:01:04]}  bxa4 {[%clk 0:01:36]} 29. bxa4 {[%clk 0:01:05]}  Ne8 {[%clk 0:01:37]} 30. Nf3 {[%clk 0:01:01]}  Nf6 {[%clk 0:01:36]} 31. Bh4 {[%clk 0:00:54]}  Qd7 {[%clk 0:01:34]} 32. Re6 {[%clk 0:00:46]}  Nd8 {[%clk 0:01:26]} 33. Re1 {[%clk 0:00:22]}  Qxa4 {[%clk 0:01:24]} 34. Re7 {[%clk 0:00:20]}  Rf7 {[%clk 0:01:18]} 35. Qe1 {[%clk 0:00:18]}  Ne4 {[%clk 0:01:13]} 36. Bd3 {[%clk 0:00:10]}  Bf6 {[%clk 0:00:28]} 37. Bxf6 {[%clk 0:00:09]}  Nxf6 {[%clk 0:00:27]} 38. Ng5 {[%clk 0:00:08]}  Rf8 {[%clk 0:00:22]} 39. Qh4 {[%clk 0:00:07]}  Nf7 {[%clk 0:00:20]} 40. Ne6 {[%clk 0:00:05]}  Qa1 {[%clk 0:00:19]} 41. Nxf8 {[%clk 0:00:04]}  Kxf8 {[%clk 0:00:20]} 42. Ra7 {[%clk 0:00:05]}  Qd4 {[%clk 0:00:20]} 43. Be2 {[%clk 0:00:04]}  g5 {[%clk 0:00:19]} 44. Qe1 {[%clk 0:00:04]}  Qxf4+ {[%clk 0:00:19]} 45. Kh1 {[%clk 0:00:04]}  Ne4 {[%clk 0:00:18]} 46. Bf3 {[%clk 0:00:04]}  Ng3+ {[%clk 0:00:14]} 47. Kg1 {[%clk 0:00:05]}  Ne5 {[%clk 0:00:15]} 48. Qb1 {[%clk 0:00:03]}  Qe3+ {[%clk 0:00:09]} 49. Kh2 {[%clk 0:00:03]}  Nxf3+ {[%clk 0:00:10]} 50. Kxg3 {[%clk 0:00:02]}  Nd2+ {[%clk 0:00:09]} 51. Kh2 {[%clk 0:00:03]}  Nxb1 {[%clk 0:00:10]} 0-1


[Site "https://www.chess.com"]

[Event "Titled Tuesday Blitz November 2 2021"]
[White "Zhigalko, Sergei"]
[Black "Aditya Mittal"]
[WhiteFideId "13502956"]
[BlackFideId "35042025"]
[WhiteElo "2662"]
[BlackElo "2245"]
[Result "1-0"]
[Round "04"]
[TimeControl "180+1"]
[Date "2021.11.02"]
[WhiteClock "0:00:31"]
[BlackClock "0:00:12"]

1. e4 {[%clk 0:03:00]}  c5 {[%clk 0:02:59]} 2. Nf3 {[%clk 0:03:00]}  d6 {[%clk 0:03:00]} 3. d4 {[%clk 0:03:01]}  cxd4 {[%clk 0:03:01]} 4. Qxd4 {[%clk 0:03:02]}  Nf6 {[%clk 0:03:00]} 5. Nc3 {[%clk 0:03:01]}  Nc6 {[%clk 0:03:01]} 6. Bb5 {[%clk 0:03:01]}  Bd7 {[%clk 0:03:01]} 7. Bxc6 {[%clk 0:03:01]}  Bxc6 {[%clk 0:03:02]} 8. Bg5 {[%clk 0:03:01]}  e6 {[%clk 0:03:03]} 9. O-O-O {[%clk 0:03:01]}  Be7 {[%clk 0:03:03]} 10. Rhe1 {[%clk 0:03:01]}  O-O {[%clk 0:03:03]} 11. Kb1 {[%clk 0:03:01]}  Qa5 {[%clk 0:03:03]} 12. Qd2 {[%clk 0:03:01]}  Qa6 {[%clk 0:03:03]} 13. Nd4 {[%clk 0:03:01]}  Rac8 {[%clk 0:03:02]} 14. f3 {[%clk 0:03:01]}  Rfe8 {[%clk 0:02:59]} 15. g4 {[%clk 0:03:01]}  b5 {[%clk 0:02:53]} 16. Nce2 {[%clk 0:03:01]}  Bb7 {[%clk 0:02:24]} 17. Ng3 {[%clk 0:02:58]}  Rc4 {[%clk 0:02:22]} 18. b3 {[%clk 0:02:41]}  Rc5 {[%clk 0:02:20]} 19. h4 {[%clk 0:02:34]}  Rec8 {[%clk 0:02:12]} 20. Rc1 {[%clk 0:02:13]}  Qa3 {[%clk 0:02:08]} 21. Nh5 {[%clk 0:01:51]}  b4 {[%clk 0:01:53]} 22. Re2 {[%clk 0:01:37]}  Ra5 {[%clk 0:01:40]} 23. c4 {[%clk 0:01:34]}  bxc3 {[%clk 0:01:06]} 24. Rxc3 {[%clk 0:01:34]}  Rxc3 {[%clk 0:01:02]} 25. Qxc3 {[%clk 0:01:34]}  Nxe4 {[%clk 0:01:02]} 26. fxe4 {[%clk 0:01:13]}  Bxg5 {[%clk 0:00:51]} 27. Nc6 {[%clk 0:00:45]}  Re5 {[%clk 0:00:15]} 28. Nxe5 {[%clk 0:00:35]}  Bd8 {[%clk 0:00:12]} 29. Nc4 {[%clk 0:00:31]} 1-0


[Site "https://www.chess.com"]

[Event "Titled Tuesday Blitz November 2 2021"]
[White "Abdrlauf, Elham"]
[Black "Zhigalko, Sergei"]
[WhiteFideId "1533533"]
[BlackFideId "13502956"]
[WhiteElo "2362"]
[BlackElo "2662"]
[Result "0-1"]
[Round "05"]
[TimeControl "180+1"]
[Date "2021.11.02"]
[WhiteClock "0:00:07"]
[BlackClock "0:00:05"]

1. e4 {[%clk 0:02:56]}  c5 {[%clk 0:02:59]} 2. Ne2 {[%clk 0:02:56]}  Nc6 {[%clk 0:02:58]} 3. d4 {[%clk 0:02:56]}  cxd4 {[%clk 0:02:58]} 4. Nxd4 {[%clk 0:02:57]}  Nf6 {[%clk 0:02:59]} 5. Nc3 {[%clk 0:02:58]}  e5 {[%clk 0:02:59]} 6. Nde2 {[%clk 0:02:58]}  Bc5 {[%clk 0:02:58]} 7. Ng3 {[%clk 0:02:59]}  d6 {[%clk 0:02:53]} 8. Na4 {[%clk 0:02:59]}  Bb4+ {[%clk 0:02:32]} 9. c3 {[%clk 0:02:55]}  Ba5 {[%clk 0:02:30]} 10. Bd3 {[%clk 0:02:55]}  O-O {[%clk 0:02:28]} 11. O-O {[%clk 0:02:53]}  Be6 {[%clk 0:02:28]} 12. h3 {[%clk 0:02:48]}  a6 {[%clk 0:02:22]} 13. b4 {[%clk 0:02:46]}  Bc7 {[%clk 0:02:22]} 14. Qe2 {[%clk 0:02:46]}  b5 {[%clk 0:02:19]} 15. Nb2 {[%clk 0:02:46]}  d5 {[%clk 0:02:20]} 16. exd5 {[%clk 0:02:46]}  Nxd5 {[%clk 0:02:17]} 17. Qc2 {[%clk 0:02:32]}  g6 {[%clk 0:01:58]} 18. Bh6 {[%clk 0:02:25]}  Re8 {[%clk 0:01:58]} 19. Rfd1 {[%clk 0:02:25]}  Qh4 {[%clk 0:01:54]} 20. Qd2 {[%clk 0:02:03]}  Nf4 {[%clk 0:01:49]} 21. Bxf4 {[%clk 0:02:03]}  exf4 {[%clk 0:01:50]} 22. Ne4 {[%clk 0:02:04]}  Rad8 {[%clk 0:01:38]} 23. f3 {[%clk 0:01:34]}  Ne5 {[%clk 0:01:24]} 24. Qf2 {[%clk 0:01:28]}  Qe7 {[%clk 0:01:18]} 25. Nc5 {[%clk 0:01:22]}  Bb6 {[%clk 0:01:06]} 26. Bf1 {[%clk 0:01:14]}  Nd7 {[%clk 0:00:57]} 27. Nbd3 {[%clk 0:01:09]}  Bc4 {[%clk 0:00:57]} 28. Re1 {[%clk 0:01:07]}  Qd6 {[%clk 0:00:55]} 29. Qc2 {[%clk 0:00:52]}  Bxd3 {[%clk 0:00:19]} 30. Qxd3 {[%clk 0:00:44]}  Qxd3 {[%clk 0:00:10]} 31. Rxe8+ {[%clk 0:00:43]}  Rxe8 {[%clk 0:00:09]} 32. Bxd3 {[%clk 0:00:44]}  Bxc5+ {[%clk 0:00:10]} 33. bxc5 {[%clk 0:00:45]}  Nxc5 {[%clk 0:00:11]} 34. Bf1 {[%clk 0:00:45]}  Re3 {[%clk 0:00:10]} 35. a4 {[%clk 0:00:44]}  bxa4 {[%clk 0:00:08]} 36. Ra3 {[%clk 0:00:36]}  g5 {[%clk 0:00:06]} 37. Bc4 {[%clk 0:00:36]}  Kg7 {[%clk 0:00:05]} 38. Bd5 {[%clk 0:00:35]}  a5 {[%clk 0:00:03]} 39. Bc6 {[%clk 0:00:35]}  Re1+ {[%clk 0:00:03]} 40. Kh2 {[%clk 0:00:35]}  Re2 {[%clk 0:00:02]} 41. Bxa4 {[%clk 0:00:31]}  Nxa4 {[%clk 0:00:02]} 42. Rxa4 {[%clk 0:00:32]}  Re5 {[%clk 0:00:03]} 43. h4 {[%clk 0:00:30]}  h6 {[%clk 0:00:03]} 44. hxg5 {[%clk 0:00:30]}  hxg5 {[%clk 0:00:04]} 45. g3 {[%clk 0:00:24]}  fxg3+ {[%clk 0:00:03]} 46. Kxg3 {[%clk 0:00:25]}  Rc5 {[%clk 0:00:04]} 47. Rd4 {[%clk 0:00:14]}  Kg6 {[%clk 0:00:03]} 48. Rd6+ {[%clk 0:00:13]}  f6 {[%clk 0:00:03]} 49. Ra6 {[%clk 0:00:14]}  Kf5 {[%clk 0:00:03]} 50. Kf2 {[%clk 0:00:14]}  Ke5 {[%clk 0:00:04]} 51. Ke2 {[%clk 0:00:10]}  f5 {[%clk 0:00:04]} 52. c4 {[%clk 0:00:01]}  Kf4 {[%clk 0:00:04]} 53. Kf2 {[%clk 0:00:01]}  Rxc4 {[%clk 0:00:04]} 54. Rxa5 {[%clk 0:00:02]}  Rc2+ {[%clk 0:00:04]} 55. Kg1 {[%clk 0:00:03]}  Rb2 {[%clk 0:00:05]} 56. Ra3 {[%clk 0:00:02]}  Kg3 {[%clk 0:00:04]} 57. Kf1 {[%clk 0:00:02]}  Rf2+ {[%clk 0:00:04]} 58. Kg1 {[%clk 0:00:03]}  Rxf3 {[%clk 0:00:05]} 59. Ra2 {[%clk 0:00:03]}  g4 {[%clk 0:00:05]} 60. Rg2+ {[%clk 0:00:03]}  Kf4 {[%clk 0:00:06]} 61. Rc2 {[%clk 0:00:04]}  Rg3+ {[%clk 0:00:06]} 62. Kf2 {[%clk 0:00:05]}  Rd3 {[%clk 0:00:07]} 63. Kg2 {[%clk 0:00:05]}  Rd4 {[%clk 0:00:07]} 64. Rb2 {[%clk 0:00:05]}  Kg5 {[%clk 0:00:06]} 65. Kf2 {[%clk 0:00:06]}  f4 {[%clk 0:00:06]} 66. Rb8 {[%clk 0:00:06]}  Rd2+ {[%clk 0:00:06]} 67. Kg1 {[%clk 0:00:06]}  g3 {[%clk 0:00:06]} 68. Rd8 {[%clk 0:00:07]}  Rxd8 {[%clk 0:00:05]} 0-1


[Site "https://www.chess.com"]

[Event "Titled Tuesday Blitz November 2 2021"]
[White "Aditya Mittal"]
[Black "Kalogeris, Ioannis"]
[WhiteFideId "35042025"]
[BlackFideId "4239563"]
[WhiteElo "2245"]
[BlackElo "2287"]
[Result "1-0"]
[Round "05"]
[TimeControl "180+1"]
[Date "2021.11.02"]
[WhiteClock "0:01:00"]
[BlackClock "0:00:01"]

1. d4 {[%clk 0:03:00]}  Nf6 {[%clk 0:02:50]} 2. c4 {[%clk 0:03:00]}  e6 {[%clk 0:02:50]} 3. Nc3 {[%clk 0:03:01]}  Bb4 {[%clk 0:02:48]} 4. e3 {[%clk 0:03:01]}  c5 {[%clk 0:02:46]} 5. Nf3 {[%clk 0:03:00]}  O-O {[%clk 0:02:43]} 6. Bd3 {[%clk 0:02:56]}  d6 {[%clk 0:02:41]} 7. O-O {[%clk 0:02:54]}  Nc6 {[%clk 0:02:35]} 8. Bd2 {[%clk 0:02:52]}  e5 {[%clk 0:02:30]} 9. d5 {[%clk 0:02:44]}  Ne7 {[%clk 0:02:26]} 10. a3 {[%clk 0:02:34]}  Ba5 {[%clk 0:02:15]} 11. h3 {[%clk 0:02:34]}  Bf5 {[%clk 0:02:04]} 12. Bxf5 {[%clk 0:02:29]}  Nxf5 {[%clk 0:02:05]} 13. Qc2 {[%clk 0:02:30]}  g6 {[%clk 0:01:49]} 14. Rab1 {[%clk 0:02:28]}  h5 {[%clk 0:01:42]} 15. b4 {[%clk 0:02:28]}  cxb4 {[%clk 0:01:36]} 16. axb4 {[%clk 0:02:29]}  Bb6 {[%clk 0:01:33]} 17. Na4 {[%clk 0:02:27]}  Rc8 {[%clk 0:01:32]} 18. Qb3 {[%clk 0:01:42]}  Ne4 {[%clk 0:01:28]} 19. Qd3 {[%clk 0:01:39]}  Nf6 {[%clk 0:01:08]} 20. e4 {[%clk 0:01:39]}  Ne7 {[%clk 0:01:02]} 21. c5 {[%clk 0:01:35]}  dxc5 {[%clk 0:00:58]} 22. bxc5 {[%clk 0:01:36]}  Bxc5 {[%clk 0:00:54]} 23. Nxc5 {[%clk 0:01:37]}  Rxc5 {[%clk 0:00:54]} 24. Rxb7 {[%clk 0:01:37]}  Nd7 {[%clk 0:00:17]} 25. Rxa7 {[%clk 0:01:26]}  Nc8 {[%clk 0:00:13]} 26. Rxd7 {[%clk 0:01:23]}  Qxd7 {[%clk 0:00:12]} 27. Bb4 {[%clk 0:01:23]}  Qc7 {[%clk 0:00:09]} 28. Bxc5 {[%clk 0:01:23]}  Qxc5 {[%clk 0:00:10]} 29. Nxe5 {[%clk 0:01:23]}  Re8 {[%clk 0:00:09]} 30. Nc6 {[%clk 0:01:16]}  Nd6 {[%clk 0:00:08]} 31. e5 {[%clk 0:01:17]}  Nb5 {[%clk 0:00:05]} 32. Kh2 {[%clk 0:01:13]}  Nc7 {[%clk 0:00:05]} 33. Rd1 {[%clk 0:01:03]}  Qxf2 {[%clk 0:00:04]} 34. Rf1 {[%clk 0:01:00]}  Qc5 {[%clk 0:00:02]} 35. e6 {[%clk 0:01:00]}  Nxd5 {[%clk 0:00:01]} 36. exf7+ {[%clk 0:01:00]} 1-0


[Site "https://www.chess.com"]

[Event "Titled Tuesday Blitz November 2 2021"]
[White "Horobetz, Graham"]
[Black "Hansen, Eric"]
[WhiteFideId "2047322"]
[BlackFideId "2606771"]
[WhiteElo "2633"]
[BlackElo "2568"]
[Result "0-1"]
[Round "05"]
[TimeControl "180+1"]
[Date "2021.11.02"]
[WhiteClock "0:00:09"]
[BlackClock "0:01:01"]

1. e4 {[%clk 0:03:00]}  c5 {[%clk 0:02:59]} 2. Nf3 {[%clk 0:03:00]}  e6 {[%clk 0:02:59]} 3. d4 {[%clk 0:03:01]}  cxd4 {[%clk 0:02:59]} 4. Nxd4 {[%clk 0:03:02]}  a6 {[%clk 0:02:59]} 5. Nc3 {[%clk 0:03:00]}  Qc7 {[%clk 0:03:00]} 6. Bd3 {[%clk 0:03:00]}  Nf6 {[%clk 0:03:00]} 7. Qe2 {[%clk 0:03:00]}  d6 {[%clk 0:03:00]} 8. O-O {[%clk 0:02:59]}  Be7 {[%clk 0:03:00]} 9. Kh1 {[%clk 0:02:59]}  b5 {[%clk 0:03:00]} 10. a4 {[%clk 0:02:45]}  b4 {[%clk 0:03:00]} 11. Nb1 {[%clk 0:02:44]}  Bb7 {[%clk 0:03:00]} 12. a5 {[%clk 0:02:38]}  Nbd7 {[%clk 0:03:00]} 13. Nb3 {[%clk 0:02:34]}  d5 {[%clk 0:02:59]} 14. N1d2 {[%clk 0:02:30]}  Nxe4 {[%clk 0:02:55]} 15. Nxe4 {[%clk 0:02:30]}  dxe4 {[%clk 0:02:56]} 16. Bxe4 {[%clk 0:02:31]}  Bxe4 {[%clk 0:02:57]} 17. Qxe4 {[%clk 0:02:31]}  Rc8 {[%clk 0:02:55]} 18. Be3 {[%clk 0:01:52]}  O-O {[%clk 0:02:47]} 19. Rac1 {[%clk 0:01:48]}  Nf6 {[%clk 0:02:46]} 20. Qd3 {[%clk 0:01:48]}  Qc4 {[%clk 0:02:47]} 21. Qxc4 {[%clk 0:01:42]}  Rxc4 {[%clk 0:02:47]} 22. Nd2 {[%clk 0:01:43]}  Rc6 {[%clk 0:02:44]} 23. c4 {[%clk 0:01:42]}  bxc3 {[%clk 0:02:44]} 24. Rxc3 {[%clk 0:01:40]}  Rxc3 {[%clk 0:02:44]} 25. bxc3 {[%clk 0:01:41]}  Nd5 {[%clk 0:02:45]} 26. Bd4 {[%clk 0:01:39]}  Rc8 {[%clk 0:02:43]} 27. c4 {[%clk 0:01:34]}  Nb4 {[%clk 0:02:43]} 28. Rb1 {[%clk 0:01:21]}  f6 {[%clk 0:02:35]} 29. g3 {[%clk 0:01:12]}  Kf7 {[%clk 0:02:35]} 30. Kg2 {[%clk 0:01:12]}  h5 {[%clk 0:02:23]} 31. h4 {[%clk 0:01:11]}  Rc7 {[%clk 0:02:13]} 32. Bb6 {[%clk 0:01:11]}  Rd7 {[%clk 0:02:13]} 33. Ne4 {[%clk 0:01:07]}  Nc6 {[%clk 0:02:05]} 34. Rb2 {[%clk 0:00:59]}  e5 {[%clk 0:02:01]} 35. Re2 {[%clk 0:00:56]}  Rd3 {[%clk 0:01:56]} 36. Re3 {[%clk 0:00:49]}  Rxe3 {[%clk 0:01:52]} 37. fxe3 {[%clk 0:00:50]}  Bb4 {[%clk 0:01:53]} 38. Kf3 {[%clk 0:00:44]}  Ke6 {[%clk 0:01:52]} 39. Ke2 {[%clk 0:00:42]}  Kf5 {[%clk 0:01:44]} 40. Kf3 {[%clk 0:00:40]}  g5 {[%clk 0:01:43]} 41. hxg5 {[%clk 0:00:40]}  fxg5 {[%clk 0:01:43]} 42. Nf2 {[%clk 0:00:25]}  e4+ {[%clk 0:01:44]} 43. Kg2 {[%clk 0:00:24]}  Bxa5 {[%clk 0:01:44]} 44. Bc5 {[%clk 0:00:23]}  Bb4 {[%clk 0:01:42]} 45. Bxb4 {[%clk 0:00:20]}  Nxb4 {[%clk 0:01:42]} 46. g4+ {[%clk 0:00:20]}  hxg4 {[%clk 0:01:42]} 47. Nd1 {[%clk 0:00:19]}  Nd3 {[%clk 0:01:32]} 48. Nc3 {[%clk 0:00:18]}  Nc5 {[%clk 0:01:33]} 49. Kg3 {[%clk 0:00:18]}  a5 {[%clk 0:01:34]} 50. Nb5 {[%clk 0:00:17]}  a4 {[%clk 0:01:34]} 51. Kg2 {[%clk 0:00:17]}  Kg6 {[%clk 0:01:30]} 52. Kg3 {[%clk 0:00:17]}  Kh5 {[%clk 0:01:31]} 53. Na3 {[%clk 0:00:17]}  Nb3 {[%clk 0:01:18]} 54. Nb5 {[%clk 0:00:16]}  Nc5 {[%clk 0:01:07]} 55. Na3 {[%clk 0:00:16]}  Kg6 {[%clk 0:01:07]} 56. Kxg4 {[%clk 0:00:15]}  Nd3 {[%clk 0:01:08]} 57. Nb5 {[%clk 0:00:14]}  Ne5+ {[%clk 0:01:08]} 58. Kg3 {[%clk 0:00:14]}  Nxc4 {[%clk 0:01:09]} 59. Nc3 {[%clk 0:00:10]}  a3 {[%clk 0:01:10]} 60. Kf2 {[%clk 0:00:10]}  g4 {[%clk 0:01:07]} 61. Kg3 {[%clk 0:00:10]}  Nxe3 {[%clk 0:01:01]} 62. Kf4 {[%clk 0:00:09]}  Nd5+ {[%clk 0:01:01]} 0-1


[Site "https://www.chess.com"]

[Event "Titled Tuesday Blitz November 2 2021"]
[White "Karolczuk, Iwo"]
[Black "Yeletsky, Ivan"]
[WhiteFideId "21816972"]
[BlackFideId "24180327"]
[WhiteElo "2093"]
[BlackElo "2352"]
[Result "0-1"]
[Round "05"]
[TimeControl "180+1"]
[Date "2021.11.02"]
[WhiteClock "0:00:01"]
[BlackClock "0:00:23"]

1. d4 {[%clk 0:03:00]}  d5 {[%clk 0:02:59]} 2. Nf3 {[%clk 0:03:00]}  Nf6 {[%clk 0:02:58]} 3. c4 {[%clk 0:03:00]}  e6 {[%clk 0:02:58]} 4. e3 {[%clk 0:03:00]}  Nbd7 {[%clk 0:02:58]} 5. b3 {[%clk 0:02:51]}  c6 {[%clk 0:02:56]} 6. Bb2 {[%clk 0:02:47]}  Ne4 {[%clk 0:02:53]} 7. Bd3 {[%clk 0:02:39]}  f5 {[%clk 0:02:53]} 8. O-O {[%clk 0:02:32]}  Bd6 {[%clk 0:02:52]} 9. Qc1 {[%clk 0:02:22]}  Qe7 {[%clk 0:02:44]} 10. Ba3 {[%clk 0:02:21]}  Bxa3 {[%clk 0:02:44]} 11. Qxa3 {[%clk 0:02:22]}  Qxa3 {[%clk 0:02:44]} 12. Nxa3 {[%clk 0:02:23]}  Ke7 {[%clk 0:02:45]} 13. Rac1 {[%clk 0:02:18]}  a5 {[%clk 0:02:42]} 14. Rc2 {[%clk 0:02:15]}  h6 {[%clk 0:02:27]} 15. Nb1 {[%clk 0:02:01]}  g5 {[%clk 0:02:22]} 16. Nfd2 {[%clk 0:01:58]}  b6 {[%clk 0:02:12]} 17. Nxe4 {[%clk 0:01:56]}  dxe4 {[%clk 0:02:10]} 18. Be2 {[%clk 0:01:54]}  c5 {[%clk 0:02:07]} 19. Rd2 {[%clk 0:01:29]}  a4 {[%clk 0:02:01]} 20. Nc3 {[%clk 0:01:25]}  axb3 {[%clk 0:02:01]} 21. axb3 {[%clk 0:01:26]}  Bb7 {[%clk 0:02:02]} 22. Nb5 {[%clk 0:01:19]}  Bc6 {[%clk 0:01:56]} 23. Nc7 {[%clk 0:01:11]}  Ra7 {[%clk 0:01:56]} 24. Nxe6 {[%clk 0:01:08]}  Kxe6 {[%clk 0:01:56]} 25. d5+ {[%clk 0:01:08]}  Bxd5 {[%clk 0:01:57]} 26. Rxd5 {[%clk 0:01:05]}  Nf6 {[%clk 0:01:57]} 27. Rd2 {[%clk 0:01:04]}  Rha8 {[%clk 0:01:54]} 28. Rfd1 {[%clk 0:01:03]}  Rd7 {[%clk 0:01:55]} 29. Rxd7 {[%clk 0:00:59]}  Nxd7 {[%clk 0:01:55]} 30. g4 {[%clk 0:00:59]}  f4 {[%clk 0:01:44]} 31. exf4 {[%clk 0:00:49]}  gxf4 {[%clk 0:01:44]} 32. g5 {[%clk 0:00:44]}  Ne5 {[%clk 0:01:34]} 33. gxh6 {[%clk 0:00:36]}  Rg8+ {[%clk 0:01:33]} 34. Kh1 {[%clk 0:00:35]}  Rh8 {[%clk 0:01:33]} 35. Bf1 {[%clk 0:00:16]}  Rxh6 {[%clk 0:01:33]} 36. h3 {[%clk 0:00:10]}  Kf5 {[%clk 0:01:29]} 37. Bg2 {[%clk 0:00:10]}  f3 {[%clk 0:01:22]} 38. Bf1 {[%clk 0:00:10]}  Kf4 {[%clk 0:01:21]} 39. Rd8 {[%clk 0:00:09]}  Rf6 {[%clk 0:01:19]} 40. Kg1 {[%clk 0:00:04]}  e3 {[%clk 0:01:17]} 41. fxe3+ {[%clk 0:00:04]}  Kxe3 {[%clk 0:01:18]} 42. Rd5 {[%clk 0:00:04]}  Re6 {[%clk 0:01:06]} 43. h4 {[%clk 0:00:04]}  Rg6+ {[%clk 0:01:03]} 44. Kh2 {[%clk 0:00:02]}  Ng4+ {[%clk 0:00:58]} 45. Kh3 {[%clk 0:00:02]}  Nf2+ {[%clk 0:00:58]} 46. Kh2 {[%clk 0:00:03]}  Rg4 {[%clk 0:00:50]} 47. Re5+ {[%clk 0:00:02]}  Kf4 {[%clk 0:00:50]} 48. Rh5 {[%clk 0:00:02]}  Ne4 {[%clk 0:00:41]} 49. Rh8 {[%clk 0:00:02]}  Rg7 {[%clk 0:00:32]} 50. Bh3 {[%clk 0:00:01]}  Ke3 {[%clk 0:00:32]} 51. Rf8 {[%clk 0:00:01]}  Nd2 {[%clk 0:00:26]} 52. Re8+ {[%clk 0:00:01]}  Kf2 {[%clk 0:00:25]} 53. h5 {[%clk 0:00:01]}  Rg5 {[%clk 0:00:23]} 54. h6 {[%clk 0:00:01]}  Rh5 {[%clk 0:00:23]} 0-1


[Site "https://www.chess.com"]